Workbook

Sheet Einführung
A1: Bemessung von Anlagen zur Einleitung von Niederschlagswässern in Oberflächengewässer in Anlehnung an das ÖWAV-Regelblatt 35
A3: © 2019 ÖWAV V4-8.2019
A4: 1. Beweggründe für die Veröffentlichung eines Excel-Worksheets für Retention und Einleitung von Niederschlagswässern
A5: Zur Unterstützung einer österreichweit einheitlichen Vorgangsweise bei der hydraulischen Bemessung von Entwässerungsanlagen stellt der ÖWAV das gegenständliche Bemessungsprogramm zur Verfügung. Die dem Bemessungsprogramm zu Grunde liegenden Methoden berücksichtigen das ÖWAV-Regelblatt 35 Behandlung von Niederschlagswässern - Einleitung in Oberflächenwässer. Da in vielen Fällen im Zuge der Einleitung eine gedrosselte Einleitung erforderlich ist, wurde für Regenrückhalteräume das einfache Bemessungsverfahren nach Arbeitsblatt DWA-A 117 vom April 2006 mit aufgenommen. Ein automatischer Datenimport aus dem eHYD wurde implementiert.
A7: 2. Voraussetzung zu Anwendung des Programms
A8: Das Projektgebiet muss kleiner sein als das Einzugsgebiet. Ab einer Projektgebietsgröße von rund 5 ha (0,05 km²) und einer Einzugsgebietsgröße von 5 km² wird empfohlen genauere Ermittlungsverfahren anzuwenden. Das Programm ist bei strömenden Fließverhältnissen anwendbar. Bei schießenden Strömungsverhältnissen ist das Programm nicht anwendbar.
A10: 3. Vereinfachung
A11: Das Programm nimmt einen stark vereinfachten Zusammenhang zwischen der Jährlichkeit der Regenspende und der Jährlichkeit eines Hochwasserereignisses an. Somit wird bei Auswahl z.B. einer 30-jährlichen Regenspende bei allen nachfolgenden Berechnungen in diesem Programm von einem Hochwasserereignis HQ30 ausgegangen. Dies ist eine stark vereinfachte Methodik.
A13: 4. Berechnung der Bemessungswassermenge
A14: Im Programm wird davon ausgegangen, dass das Projektgebiet außerhalb des Einzugsgebiets liegt, auch wenn dieses in der Realität komplett oder zum Teil im Einzugsgebiet liegen sollte. Da das Programm nur für kleine Einzugsgebiete und Projektgebiete geeignet ist, ist davon auszugehen, dass diese Herangehensweise im Fall eines im Einzugsgebiet (komplett oder zum Teil) enthaltenen Projektgebietes eine zusätzliche Sicherheit bewirkt.
A16: 5. Berechnung der Konzentrationszeit
A17: Im ÖWAV Regelblatt 35 werden für die Berechnung der Konzentrationszeit 4 verschiedene Methoden angeführt (nach KREPS, nach KERBY, nach SPECHT, nach CARTER). Für die Berechnung im Programm ergibt sich die Konzentrationszeit aus der Berechnung der Konzentrationszeit mit jeder dieser Methoden, wobei aus diesen 4 Ergebnissen der Mittelwert in die weitere Berechnung einfließt. Bei der Methodik nach SPECHT wird dazu die Berechnung mit 1/2 *L sowie 1/3*L durchgeführt und der MIttelwert gebildet. Ausschließlich der Mittelwert dieser beiden Ergebnisse fließt in die Berechnung des Mittelwertes aus allen 4 Konzentrationszeiten ein.
A19: 6. Berechnung mit vorhandenen hydrographischen Daten
A20: Wenn für das Einzugsgebiet des Projektstandortes bereits Daten vom hydrographischen Dienst vorhanden sind, kann das Programm durch Drücken des Buttons JA bei den Eingaben umgeschaltet werden. In diesem Fall sind vom Einzugsgebiet ausschließlich die Daten HQ30 und HQ1 erforderlich. Die weiteren Berechnungen beziehen sich hierauf. Die Berechnungen der Konzentrationszeit basieren in diesem Fall ausschließlich auf dem Projektgebiet. Ein neuerliches Umschalten auf die Berechnung ohne vorhandene Daten erfolgt durch Klick auf den Button NEIN im Bereich Eingaben.
A22: 7. Interpretation der Ergebnisse
A23: ACHTUNG! Auch wenn die zusätzliche Einleitung lt. Berechnung der neuen Wasserspiegelhöhe möglich ist (Profil ausreichend groß), muss trotzdem auf die nachfolgenden Prüfkriterien geachtet werden. Es sind zwei Prüfkriterien enthalten, Prüfkriterium I (Vergleich Einleitungsmenge zur Wasserführung) und Prüfkriterium II (Vergleich Einleitungsmenge in Bezug auf Hydraulischen Stress) zu achten, bei denen lt. Regelblatt 35 trotzdem eine Retention erforderlich sein kann.
A25: 8. Voraussetzungen für Anwendung des Excel-Worksheets für Retention und Einleitung von Niederschlagswässern
A26: Die Anwendung setzt die Kenntnis der relevanten Regelwerke und die Fachkunde des Planers voraus.
A27: Es ist wichtig, dass der Ordner ehyd_Regendaten im selben Ordner gespeichert wird, wie das Versickerungsprogramm selbst, da die automatische Importfunktion andernfalls die zu importierenden Daten nicht finden kann. Es ist ebenso darauf zu achten, dass der Speicherpfad des Programms <300 Zeichen aufweist, da es sonst zu Fehlermeldunge kommen kann.
A29: Systemskizze (Einzugsgebiet, Länge Gewässer bis zum Einleitungspunkt)
A32: Hinweis zur Bedienung:
A54: Zusatzinformationen
B55: Eingabefeld | C55: Benutzer muss Eingabe tätigen
B56: Ausgabefeld | C56: wird automatisch berechnet
B57: Kommentar | C57: Feld enthält ein Kommentar, dieses erscheint, wenn man mit dem Mauszeiger über das entsprechende Feld fährt

Sheet Begriffe
A1: BEGRIFFE UND ABKÜRZUNGEN DER BERECHNUNGSPARAMETER | F1: =Einführung!A3 -> © 2019 ÖWAV V4-8.2019
A3: Verwendete Parameter | E3: Abkürz. | F3: Einheit
A4: Größe Einzugsgebiet | E4: AE | F4: ha
A5: Größe Projektgebiet | E5: AP | F5: ha
A6: Länge des Gewässers bis zum Einleitungspunkt | E6: LE | F6: km
A7: Länge des Projektgebietes | E7: LP | F7: km
A8: Höhenunterschied des Gewässers | E8: HE | F8: m
A9: Höhenunterschied Projektgebiet | E9: HP | F9: m
A10: Gefälle Einzugsgebiet | E10: JE | F10: %
A11: Gefälle Projektgebiet | E11: JP | F11: %
A12: Gefälle Gewässer | E12: J | F12: %
A13: Rauigkeitskoeffizient Einzugsgebiet | E13: nE | F13: -
A14: Rauigkeitskoeffizient Projektgebiet | E14: nP | F14: -
A15: Abflussbeiwert Einzugsgebiet | E15: an,E | F15: -
A16: Abflussbeiwert Projektgebiet vor Bebauung | E16: an,Pvor | F16: -
A17: Abflussbeiwert Projektgebiet nach Bebauung | E17: an,Pnach | F17: -
A18: Böschungsneigung orographisch rechts | E18: JB, rechts | F18: -
A19: Böschungsneigung orographisch links | E19: JB, links | F19: -
A20: Höhe Freibord (Gewäsersohle senkrecht bis Böschungskante) | E20: hF | F20: m
A21: Stricklerbeweiwert für Einzugsgebiet | E21: kSt,E
A22: Stricklerbeiwert für Projektsgebiet | E22: kSt,P
A23: Stricklerbeiwert für Gewässer | E23: kSt,G | F23: -
A24: Durchflussfläche Gewässer | E24: A | F24: m²
A25: Benetzter Umfang | E25: U | F25: m
A26: Hydraulischer Radius | E26: r | F26: -
A27: Verhältniszahl aus Konzentrationszeiten Einzugsgebiet zu Projektgebiet | E27: EPV | F27: -
A28: Konzentrationszeit | E28: tc | F28: min
A29: Berechnungshöhe 90% (90 % der Bordkapazität = Böschungshöhe) | E29: h90 | F29: m
A30: Wiederkehrzeit Regendaten | E30: n | F30: -
A31: mittlerer Drosselabfluss | E31: QD | F31: l/s
A32: mittlere Drosselabflussspende | E32: qD | F32: l/s * ha
A33: Zuschlagsfaktor | E33: fz | F33: -
A34: Abminderungsfaktor | E34: fa | F34: -
A35: erforderliches Retentionsvolumen | E35: VRetention | F35: m³
A37: TABELLEN
A39: Abflussbeiwert
A42: Rauigkeitskoeffizient der Oberfläche (n=1/kSt)
A43: 0.02 | B43: glatte undurchlässige Flächen
A44: 0.1 | B44: glatte Böden (Brache), Rasen
A45: 0.2 | B45: Getreide, Ackerland
A46: 0.4 | B46: Weide
A47: 0.6 | B47: Laubwald
A48: 0.8 | B48: Wald mit tiefgründiger Spreuschicht
A50: Stricklerbeiwert

Sheet Bemessungsregendaten, kfu
N1: =Einführung!A3 -> © 2019 ÖWAV V4-8.2019
A3: ALLGEMEINE PROJEKTDATEN
A4: Projektbezeichnung: | E4: Testprojekt
A5: Bearbeiter: | E5: Max Mustermann
A6: Bemerkungen: | E6: Testprojekt
A8: BEMESSUNGSREGENDATEN
A9: Information:
A10: Die Berechnungen, welche auf den nachfolgenden Blättern durchgeführt werden, beziehen sich auf die in diesem Blatt eingetragenen Regenreihen. Es handelt sich hierbei um die Bemessungsregendaten aus dem ehyd-System. Die Daten können auf der ehyd-Homepage (Link: http://ehyd.gv.at/# ) heruntergeladen werden und in weiterer Folge per Hand oder automatisch in die unten angeführte Liste eingetragen werden. Dazu müssen Sie auf der Homepage den Punkt "Kennwerte und Bemessung" und den Unterpunkt "Bemessungsregen" anklicken. Dann erscheinen die Gitterpunkte mit den Bemessungregendaten. Sie müssen auf den gewünschten Punkt klicken und die Datei als ASCII-Datei herunterladen und im Ordner "ehyd_Regendaten" speichern.
A14: Link: | B14: ehyd-Regendatenbank
A18: Gitterpunkt | D18: 2862
A20: DAUER | B20: MIN | C20: 0 | D20: 1 | E20: 2 | F20: 3 | G20: 5 | H20: 10 | I20: 20 | J20: 25 | K20: 30 | L20: 50 | M20: 75 | N20: 100
A21: 5 min. | B21: 5 | C21: 0 | D21: 6.4 | E21: 8.8 | F21: 10.2 | G21: 12 | H21: 14.4 | I21: 16.8 | J21: 17.6 | K21: 18.1 | L21: 20 | M21: 21.4 | N21: 22.3
A22: 10 min. | B22: 10 | C22: 0 | D22: 8.2 | E22: 11.4 | F22: 13.3 | G22: 15.6 | H22: 18.9 | I22: 22.1 | J22: 23.2 | K22: 24.1 | L22: 26.4 | M22: 28.4 | N22: 29.6
A23: 15 min. | B23: 15 | C23: 0 | D23: 9.5 | E23: 13.3 | F23: 15.5 | G23: 18.4 | H23: 22.2 | I23: 26 | J23: 27.3 | K23: 28.2 | L23: 31.1 | M23: 33.4 | N23: 34.9
A24: 20 min. | B24: 20 | C24: 0 | D24: 10.5 | E24: 14.7 | F24: 17.2 | G24: 20.3 | H24: 24.6 | I24: 28.8 | J24: 30.1 | K24: 31.3 | L24: 34.4 | M24: 36.9 | N24: 38.7
A25: 30 min. | B25: 30 | C25: 0 | D25: 12.2 | E25: 17 | F25: 19.9 | G25: 23.5 | H25: 28.4 | I25: 33.4 | J25: 34.9 | K25: 36.2 | L25: 39.8 | M25: 42.7 | N25: 44.8
A26: 45 min. | B26: 45 | C26: 0 | D26: 14.1 | E26: 19.7 | F26: 22.9 | G26: 27.1 | H26: 32.7 | I26: 38.2 | J26: 40.1 | K26: 41.6 | L26: 45.7 | M26: 48.9 | N26: 51.3
A27: 60 min. | B27: 60 | C27: 0 | D27: 15.8 | E27: 21.8 | F27: 25.4 | G27: 29.8 | H27: 35.9 | I27: 42.2 | J27: 44.1 | K27: 45.7 | L27: 50.3 | M27: 53.8 | N27: 56.4
A28: 90 min. | B28: 90 | C28: 0 | D28: 18.3 | E28: 25.1 | F28: 29.1 | G28: 34.3 | H28: 41.2 | I28: 48.2 | J28: 50.3 | K28: 52.2 | L28: 57.4 | M28: 61.3 | N28: 64.3
A29: 2 h | B29: 120 | C29: 0 | D29: 20.4 | E29: 27.9 | F29: 32.3 | G29: 37.8 | H29: 45.5 | I29: 53 | J29: 55.6 | K29: 57.4 | L29: 63.1 | M29: 67.6 | N29: 70.7
A30: 3 h | B30: 180 | C30: 0 | D30: 23.7 | E30: 32.2 | F30: 37.3 | G30: 43.7 | H30: 52.4 | I30: 61.1 | J30: 64 | K30: 66.1 | L30: 72.6 | M30: 77.7 | N30: 81.3
A31: 4 h | B31: 240 | C31: 0 | D31: 26.5 | E31: 35.8 | F31: 41.2 | G31: 48.2 | H31: 57.7 | I31: 67.5 | J31: 70.4 | K31: 72.7 | L31: 79.8 | M31: 85.3 | N31: 89.5
A32: 6 h | B32: 360 | C32: 0 | D32: 31.9 | E32: 42.1 | F32: 48 | G32: 55.6 | H32: 66.1 | I32: 76.4 | J32: 79.7 | K32: 82.6 | L32: 90 | M32: 96 | N32: 100.6
A33: 9 h | B33: 540 | C33: 0 | D33: 38.4 | E33: 49.7 | F33: 56.4 | G33: 64.8 | H33: 76.3 | I33: 87.8 | J33: 91.4 | K33: 94.3 | L33: 102.9 | M33: 109.6 | N33: 114.3
A34: 12 h | B34: 720 | C34: 0 | D34: 42.3 | E34: 55.5 | F34: 63.2 | G34: 73.1 | H34: 86.3 | I34: 99.1 | J34: 103.6 | K34: 106.8 | L34: 116.4 | M34: 124 | N34: 129.5
A35: 18 h | B35: 1080 | C35: 0 | D35: 48.7 | E35: 64.2 | F35: 73.2 | G35: 84.6 | H35: 100.1 | I35: 115.6 | J35: 120.6 | K35: 124.7 | L35: 136.1 | M35: 144.5 | N35: 151.1
A36: 1 d | B36: 1440 | C36: 0 | D36: 52.2 | E36: 68.2 | F36: 77.5 | G36: 89.3 | H36: 105.5 | I36: 119.9 | J36: 124.9 | K36: 128.5 | L36: 138.8 | M36: 147.7 | N36: 154.4
A37: 2 d | B37: 2880 | C37: 0 | D37: 61.4 | E37: 79.1 | F37: 89.5 | G37: 102.6 | H37: 120.3 | I37: 138.2 | J37: 143.8 | K37: 148.7 | L37: 161.7 | M37: 172.5 | N37: 180
A38: 3 d | B38: 4320 | C38: 0 | D38: 67.2 | E38: 86 | F38: 97 | G38: 110.8 | H38: 130.2 | I38: 149.4 | J38: 155.6 | K38: 160.8 | L38: 174.8 | M38: 186.2 | N38: 194.3
A39: 4 d | B39: 5760 | C39: 0 | D39: 71.5 | E39: 91 | F39: 102.5 | G39: 116.8 | H39: 136.9 | I39: 156.8 | J39: 163.2 | K39: 168.5 | L39: 183.2 | M39: 195 | N39: 203.3
A40: 5 d | B40: 7200 | C40: 0 | D40: 74.9 | E40: 95 | F40: 106.7 | G40: 121.5 | H40: 142.1 | I40: 162.4 | J40: 169.1 | K40: 174.4 | L40: 189.4 | M40: 201.4 | N40: 210
A41: 6 d | B41: 8640 | C41: 0 | D41: 77.8 | E41: 98.3 | F41: 110.2 | G41: 125.3 | H41: 146.3 | I41: 167 | J41: 173.7 | K41: 179.1 | L41: 194.4 | M41: 206.6 | N41: 215.3
D43: 1 | E43: 2 | F43: 3 | G43: 5 | H43: 10 | I43: 20 | J43: 25 | K43: 30 | L43: 50 | M43: 75 | N43: 100

Sheet Nachweisführung
A1: Projektbezeichnung: | C1: ='Bemessungsregendaten, kfu'!E4 -> Testprojekt
A2: Bearbeiter: | C2: ='Bemessungsregendaten, kfu'!E5 -> Max Mustermann | O2: ='Bemessungsregendaten, kfu'!D20 -> 1 | P2: ='Bemessungsregendaten, kfu'!E20 -> 2 | Q2: ='Bemessungsregendaten, kfu'!F20 -> 3 | R2: ='Bemessungsregendaten, kfu'!G20 -> 5 | S2: ='Bemessungsregendaten, kfu'!H20 -> 10 | T2: ='Bemessungsregendaten, kfu'!I20 -> 20 | U2: ='Bemessungsregendaten, kfu'!J20 -> 25 | V2: ='Bemessungsregendaten, kfu'!K20 -> 30 | W2: ='Bemessungsregendaten, kfu'!L20 -> 50 | X2: ='Bemessungsregendaten, kfu'!M20 -> 75 | Y2: ='Bemessungsregendaten, kfu'!N20 -> 100
A3: Bemerkungen: | C3: ='Bemessungsregendaten, kfu'!E6 -> Testprojekt
E4: =Einführung!A3 -> © 2019 ÖWAV V4-8.2019
A5: EINGABEN
A6: Hydrographische Daten vorhanden | D6: =IF(M6="ja","ja","nein") -> nein | E6: =IF(M6="nein","ja","nein") -> ja | M6: nein
A7: Angaben Einzugsgebiet E | D7: Projektgebiet P
A8: Größe des Einzugsgebietes AE: | C8: 42 | D8: Mittleres Gefälle des Einzugsgebiets JE: | F8: =C10/(C9*1000) -> 0.038
A9: Länge bis zum Einleitungspunkt LE: | C9: 1 | D9: Rauigkeitskoeffizient vom Einzugsgebiet nE: | F9: 0.04
A10: Höhenunterschied HE: | C10: 38 | D10: Abflussbeiwert an,E: | F10: 0.2
A12: HQ30 | C12: 2.01 | D12: HQ1 | F12: 0.75
A14: Angaben Projektgebiet P
A15: Größe des Projektgebietes AP: | C15: 1.2 | D15: Mittleres Gefälle des Projektgebiets JP: | F15: =C17/(C16*1000) -> 0.005333333333
A16: Länge bis zum Einleitungspunkt LP: | C16: 0.15 | D16: Rauigkeitskoeffizient nP: | F16: 0.033
A17: Höhenunterschied HP: | C17: 0.8 | D17: mittlerer Abflussbeiwert an,Pvor: | F17: 0.2
D18: mittlerer Abflussbeiwert an,Pnach: | F18: 0.8
K19: F22 und 23 | L19: Höhe
A20: Gewässer | K20: G22 und G23 | L20: Breite
A21: Sohlbreite b: | C21: 2 | D21: Berechnungshöhe (90 % der Bordkapazität = Böschungshöhe) h90: | F21: =C22*0.9 -> 0.99 | K21: Gerinne Bestand
A22: Böschungshöhe h: | C22: 1.1 | D22: Böschungsneigung JB, rechts: | F22: 1 | G22: 1 | K22: mrechts | L22: =G22/F22*F21 -> 0.99
A23: Gefälle des Gewässers JG: | C23: 0.025 | D23: Böschungsneigung JB, links: | F23: 1 | G23: 1 | K23: mlinks | L23: =G23/F23*F21 -> 0.99
A24: Höhe Freibord hF: | C24: 0.1 | D24: Stricklerbeiwert kst: | F24: 20 | K24: Seite c | L24: =C21+L22+L23 -> 3.98
A26: Durchflussfläche bis Berechnungshöhe A: | C26: =((C21+L24)*F21)/2 -> 2.9601 | Y26: 5
A27: Benetzter Umfang U: | C27: =C21+SQRT(F21^2+L22^2)+SQRT(F21^2+L23^2) -> 4.800142853 | D27: Hydraulischer Radius r: | F27: =C26/C27 -> 0.6166691472 | Y27: 10
Y28: 20
A29: BERECHNUNGEN | Y29: 30
A30: Konzentrationszeit tc (Mittelung) | D30: Regendaten | Y30: 45
D31: Wiederkehrzeit Regendaten [n]: | F31: 30 | Y31: 60
Y32: 90
A33: Einzugsgebiet [min] (nächstgelegene lt. ehyd): | C33: =Konzentrationszeit!F21 -> 22.65257524 | D33: Einzugsgebiet [mm]: | F33: =Konzentrationszeit!T29 -> 32.59976187 | Y33: 120
A34: Projektgebiet [min] (nächstgelegene lt. ehyd): | C34: =Konzentrationszeit!F22 -> 6.374184132 | D34: Projektgebiet [mm]: | F34: =Konzentrationszeit!T30 -> 19.74902096 | Y34: 180
A35: Bemessungsregenspende | Y35: 240
A36: Einzugsgebiet [l/(s*ha)]: | C36: =F33/(C33*60)*10000 -> 239.8532435 | D36: =C33 -> 22.65257524 | E36: =F31 -> 30 | Y36: 360
A37: Projektgebiet [l/(s*ha)]: | C37: =F34/(C34*60)*10000 -> 516.3803594 | D37: =C34 -> 6.374184132 | E37: =F31 -> 30 | Y37: 540
Y38: 720
A39: BEMESSUNGSWASSERMENGE für P liegt außerhalb von E | Y39: 1080
A40: Konzentrationszeit a (Einzugsgebiet abhängig) | D40: Konzentrationszeit b (Projektgebiet abhängig) | Y40: 2880
D41: Verhältniszahl aus Konzentrationszeiten Einzugsgebiet zu Projektgebiet EPV | F41: =IF(M6="ja",1,C34/C33) -> 0.2813889398
A42: Einzugsgebiet | B42: =F31 -> 30 | C42: =C8*F10*C36/1000 -> 2.014767245 | D42: Einzugsgebiet | E42: =F31 -> 30 | F42: =C8*F10*F41*C37/1000 -> 1.220551264 | Y42: 4320
A43: Projektgebiet | B43: =F31 -> 30 | C43: =C15*F18*C36/1000 -> 0.2302591137 | D43: Projektgebiet | E43: =F31 -> 30 | F43: =C15*F18*C37/1000 -> 0.4957251451 | Y43: 5760
A44: =F31 -> 30 | C44: =C42+C43 -> 2.245026359 | D44: =F31 -> 30 | F44: =F42+F43 -> 1.716276409 | Y44: 7200
A45: =F31 -> 30 | C45: =MAX(F44,C44) -> 2.245026359 | D45: =F31 -> 30 | F45: =C45/C42-1 -> 0.1142857143 | K45: Konzentrationszeit a
K46: m rechts | L46: =G22/F22*C53 -> 0.5064570817
A47: GERINNEKAPAZITÄT | K47: m links | L47: =G23/F23*C53 -> 0.5064570817
A48: Abfluss bei 90 % Vollfüllung des Gerinnes | C48: =C26*F24*POWER(F27,2/3)*POWER(C23,1/2) -> 6.781740953 | K48: Seite c | L48: =C21+L46+L47 -> 3.012914163
K49: Fläche | L49: =((C21+L48)*C53)/2 -> 1.269412939
A50: WASSERSPIEGELHÖHEN | K50: Umfang | L50: =C21+SQRT(C53^2+L46^2)+SQRT(C53^2+L47^2) -> 3.432476947
A51: =F31 -> 30 | C51: =ROUND(IF(F44>C44,F42,C42),3) -> 2.015 | D51: =F31 -> 30 | F51: =ROUND((C15*F17*IF(F44>C44,C37,C36)/1000),3) -> 0.058 | K51: Radius | L51: =L49/L50 -> 0.3698241703 | N51: Wasserspiegelhöhen
A52: =F31 -> 30 | C52: =ROUND(C51+F51,3) -> 2.073 | D52: =F31 -> 30 | F52: =ROUND(C45,3) -> 2.245 | N52: =ROUND(L49*F24*L51^(2/3)*C23^(1/2),3) -> 2.068 | O52: =ROUND(C52-N52,2) -> 0
A53: Wasserspiegelhöhe alt nach Strickler | C53: 0.5064570817 | D53: Wasserspiegelhöhe neu nach Strickler | F53: 0.531359704 | K53: Konzentrationszeit b
A54: =IF(OR(O52>0,O52<0,O54>0,O54<0),"ACHTUNG, Werte sind nicht korrekt. Bitte nochmals Wasserspiegelhöhe berechnen.","Berechnung in Ordnung.") -> Berechnung in Ordnung. | K54: m rechts | L54: =G22/F22*F53 -> 0.531359704 | N54: =ROUND(L57*F24*L59^(2/3)*C23^(1/2),3) -> 2.247 | O54: =ROUND(F52-N54,2) -> 0
A55: =IF(AND(C53>F21,C53<C22),"Achtung der Bestandsabfluss liegt bereits über 90% der Bordkapazität.",IF(C53>C22,"Das Programm ist für diesen Fall nicht geeignet. Es ist eine detaillierte Berechnung notwendig.",IF(AND(F53>F21,F53<C22),"Achtung der neue Abfluss liegt über 90% der Bordkapazität.",IF(F53>C22,"Das Programm ist für diesen Fall nicht geeignet. Es ist eine detaillierte Berechnung notwendig.",IF(A54="ACHTUNG, Werte sind nicht korrekt. Bitte nochmals Wasserspiegelhöhe berechnen.","Bitte drücken Sie den Button Wasserspiegelhöhe berechnen.","Neuer Abfluss hat in den 90% Bordkapazität Platz."))))) -> Neuer Abfluss hat in den 90% Bordkapazität Platz. | K55: m links | L55: =G23/F23*F53 -> 0.531359704
K56: Seite c | L56: =C21+L54+L55 -> 3.062719408
K57: Fläche | L57: =((C21+L56)*F53)/2 -> 1.345062543
K58: Umfang | L58: =C21+SQRT(F53^2+L54^2)+SQRT(F53^2+L55^2) -> 3.5029122
A59: Erhöhung Wasserstand im Gewässer: | C59: =(F53-C53)*100 -> 2.490262228 | D59: Reserve zur Bordkapazität mit 90% | F59: =(F21-F53)*100 -> 45.8640296 | K59: Radius | L59: =L57/L58 -> 0.383984087
D60: Reserve bis zur Vollfüllung Gerinne | F60: =(C22-F53)*100 -> 56.8640296
A61: =IF(F59<0,"ACHTUNG! Retention erforderlich!","Einleitung ok. Keine Retention erforderlich.") -> Einleitung ok. Keine Retention erforderlich. | J61: =IF(A61="Einleitung ok. Keine Retention erforderlich.",0,1) -> 0
A63: Prüfkriterium I - Vergleich Einleitungsmenge zur Wasserführung
A64: maximale Einleitmenge | C64: 0.1 | D64: Maßgebende Konzentrationszeit tc | F64: =IF(C44>F44,C33,C34) -> 22.65257524 | K64: =IF(C44>F44,1,F41) -> 1
A65: Jährlichkeit Regendaten ehyd | C65: 1 | D65: Regendaten ehyd für gewählte Jährlichkeit | F65: =IF(F64=Konzentrationszeit!S29,Konzentrationszeit!U29,Konzentrationszeit!U30) -> 10.95093779
A67: Regenspende Projektgebiet: | C67: =F65/(F64*60)*10000 -> 80.57169126 | D67: HQ1 Einzugsgebiet | F67: =C8*K64*F10*C67/1000 -> 0.6768022066
A68: Q1 Projektgebiet | C68: =C15*F18*C67/1000 -> 0.07734882361 | D68: maximale Einleitmenge | F68: =C64*F67 -> 0.06768022066
A70: =IF(C68>F68,"Lt. Regelblatt 35 ist das Erfordernis einer Retention zu prüfen.","Einleitung ohne Retention möglich.") -> Lt. Regelblatt 35 ist das Erfordernis einer Retention zu prüfen. | J70: =IF(A70="Lt. Regelblatt 35 ist das Erfordernis einer Retention zu prüfen.",1,0) -> 1
A73: Prüfkriterum II für Retention - Vergleich Einleitungsmenge in Bezug auf Hydraulischen Stress
A74: maximale Einleitmenge gem. Gewässerökologie | C74: 0.3 | D74: Regen im Einzugsgebiet | F74: =IF(C44>F44,C33,C34) -> 22.65257524
A75: Jährlichkeit Regendaten ehyd | C75: 1 | D75: Regendaten ehyd für gewählte Jährlichkeit | F75: =IF(F74=Konzentrationszeit!S29,Konzentrationszeit!U29,Konzentrationszeit!U30) -> 10.95093779
A77: Regenspende Projektgebiet: | C77: =F65/(F64*60)*10000 -> 80.57169126 | D77: HQ1 Einzugsgebiet | F77: =C8*K64*F10*C67/1000 -> 0.6768022066
A78: Q1 Projektgebiet | C78: =C15*F18*C67/1000 -> 0.07734882361 | D78: maximale Einleitmenge gem. Gewässerökologie | F78: =C74*F77 -> 0.203040662
A80: =IF(C78>F78,"Lt. Regelblatt 35 ist das Erfordernis einer Retention zu prüfen.","Einleitung ohne Retention möglich.") -> Einleitung ohne Retention möglich. | J80: =IF(A80="Lt. Regelblatt 35 ist das Erfordernis einer Retention zu prüfen.",1,0) -> 0
J81: =J61+J70+J80 -> 1
A84: BERECHNUNGEN
A85: Konzentrationszeit tc (Mittelung) | D85: Regendaten
A86: Einzugsgebiet [min] (Berechnung): | C86: =Konzentrationszeit!F22 -> 6.374184132 | D86: Wiederkehrzeit Regendaten [n]: | F86: 30
A87: Projektgebiet [min] (nächstgelegene lt. ehyd): | C87: =Konzentrationszeit!F22 -> 6.374184132 | D87: Projektgebiet [mm]: | F87: =Konzentrationszeit!T53 -> 19.74902096
A89: Bemessungsregenspende
A90: Projektgebiet [l/(s*ha)]: | C90: =F87/(C87*60)*10000 -> 516.3803594 | D90: =C87 -> 6.374184132 | E90: =F86 -> 30
A92: BEMESSUNGSWASSERMENGE für P liegt außerhalb von E
A93: Konzentrationszeit a (Einzugsgebiet abhängig) | D93: Konzentrationszeit b (Projektgebiet abhängig)
A94: Wird nicht berechnet, da Daten vorhanden sind. | D94: Einzugsgebiet | E94: =F86 -> 30 | F94: =C12 -> 2.01 | N94: Schräge 1,12 m - Schräge
D95: Projektgebiet | E95: =F86 -> 30 | F95: =C15*F18*C90/1000 -> 0.4957251451 | N95: Umfang ist | O95: 4,24 m
A96: =F86 -> 30 | C96: - | D96: =F86 -> 30 | F96: =F94+F95 -> 2.505725145 | N96: Radius | O96: 0.59
A98: GERINNEKAPAZITÄT | K98: Konzentrationszeit a
A99: Abfluss bei 90 % Vollfüllung des Gerinnes | C99: =C26*F24*POWER(F27,2/3)*POWER(C23,1/2) -> 6.781740953 | K99: mrechts | L99: =G22/F22*C104 -> 0.5152922823
K100: mlinks | L100: =G23/F23*C104 -> 0.5152922823
A101: HAUPTKRITERIUM - WASSERSPIEGELHÖHEN | K101: Seite c | L101: =L99+L100+C21 -> 3.030584565
A102: =F86 -> 30 | C102: =ROUND(C12,3) -> 2.01 | D102: =F86 -> 30 | F102: =ROUND((C15*F17*C90/1000),3) -> 0.124 | K102: Fläche | L102: =((C21+L101)*C104)/2 -> 1.296110701 | N102: Wasserspiegelhöhen
A103: =F86 -> 30 | C103: =ROUND(C102+F102,3) -> 2.134 | D103: =F86 -> 30 | F103: =ROUND(F96,3) -> 2.506 | K103: Umfang | L103: =C21+SQRT(C104^2+L99^2)+SQRT(C104^2+L100^2) -> 3.457466668 | N103: =ROUND(L102*F24*L104^(2/3)*C23^(1/2),3) -> 2.131 | O103: =ROUND(C103-N103,2) -> 0
A104: Wasserspiegelhöhe alt nach Strickler | C104: 0.5152922823 | D104: Wasserspiegelhöhe neu nach Strickler | F104: 0.5658903536 | K104: Hydr. Radius | L104: =L102/L103 -> 0.3748729417
A105: =IF(OR(O103>0,O103<0,O105>0,O105<0),"ACHTUNG, Werte sind nicht korrekt. Bitte nochmals Wasserspiegelhöhe berechnen.","Berechnung in Ordnung.") -> Berechnung in Ordnung. | N105: =ROUND(L110*F24*L112^(2/3)*C23^(1/2),3) -> 2.506 | O105: =ROUND(F103-N105,2) -> 0
A106: =IF(AND(C104>F21,C104<C22),"Achtung der Bestandsabfluss liegt bereits über 90% der Bordkapazität.",IF(C104>C22,"Das Programm ist für diesen Fall nicht geeignet. Es ist eine detaillierte Berechnung notwendig.",IF(AND(F104>F21,F104<C22),"Achtung der neue Abfluss liegt über 90% der Bordkapazität.",IF(F104>C22,"Das Programm ist für diesen Fall nicht geeignet. Es ist eine detaillierte Berechnung notwendig.",IF(A105="ACHTUNG, Werte sind nicht korrekt. Bitte nochmals Wasserspiegelhöhe berechnen.","Bitte drücken Sie den Button Wasserspiegelhöhe berechnen.","Neuer Abfluss hat in den 90% Bordkapazität Platz."))))) -> Neuer Abfluss hat in den 90% Bordkapazität Platz. | K106: Konzentrationszeit b
K107: mrechts | L107: =G22/F22*F104 -> 0.5658903536
K108: mlinks | L108: =G23/F23*F104 -> 0.5658903536
K109: Seite c | L109: =C21+L107+L108 -> 3.131780707
A110: Erhöhung Wasserstand im Gewässer: | C110: =(F104-C104)*100 -> 5.05980713 | D110: Reserve zur Bordkapazität mit 90% | F110: =(F21-F104)*100 -> 42.41096464 | K110: Fläche | L110: =((C21+L109)*F104)/2 -> 1.452012599
D111: Reserve bis zur Vollfüllung Gerinne | F111: =(C22-F104)*100 -> 53.41096464 | K111: Umfang | L111: =C21+SQRT(F104^2+L107^2)+SQRT(F104^2+L108^2) -> 3.600579626
A112: =IF(F110<0,"ACHTUNG! Retention erforderlich!","Einleitung ok. Keine Retention erforderlich.") -> Einleitung ok. Keine Retention erforderlich. | J112: =IF(A112="ACHTUNG! Retention erforderlich!",1,0) -> 0 | K112: Hydr. Radius | L112: =L110/L111 -> 0.4032719035
A114: Prüfkriterium I - Vergleich Einleitungsmenge zur Wasserführung
A115: maximale Einleitmenge gem. Gewässerökologie | C115: 0.1 | D115: Maßgebende Konzentrationszeit tc | F115: =C87 -> 6.374184132
A116: Jährlichkeit Regendaten ehyd | C116: 1 | D116: Regendaten ehyd für gewählte Jährlichkeit | F116: =Konzentrationszeit!U53 -> 6.894706287
A118: Regenspende Projektgebiet: | C118: =F116/(F115*60)*10000 -> 180.2768309 | D118: HQ1 Einzugsgebiet | F118: =F12 -> 0.75
A119: Q1 Projektgebiet | C119: =C15*F18*C118/1000 -> 0.1730657576 | D119: maximale Einleitmenge gem. Gewässerökologie | F119: =C115*F118 -> 0.075
A121: =IF(C119>F119,"Lt. Regelblatt 35 ist das Erfordernis einer Retention zu prüfen.","Einleitung ohne Retention möglich.") -> Lt. Regelblatt 35 ist das Erfordernis einer Retention zu prüfen.
J122: =IF(A121="Lt. Regelblatt 35 ist das Erfordernis einer Retention zu prüfen.",1,0) -> 1
A124: Prüfkriterum II für Retention - Vergleich Einleitungsmenge in Bezug auf Hydraulischen Stress
A125: maximale Einleitmenge gem. Gewässerökologie | C125: 0.3 | D125: Regen im Einzugsgebiet | F125: =C87 -> 6.374184132
A126: Jährlichkeit Regendaten ehyd | C126: 1 | D126: Regendaten ehyd für gewählte Jährlichkeit | F126: =Konzentrationszeit!U53 -> 6.894706287
A128: Regenspende Projektgebiet: | C128: =F126/(F125*60)*10000 -> 180.2768309 | D128: HQ1 Einzugsgebiet | F128: =F12 -> 0.75
A129: Q1 Projektgebiet | C129: =C15*F18*C128/1000 -> 0.1730657576 | D129: maximale Einleitmenge gem. Gewässerökologie | F129: =C125*F128 -> 0.225
A131: =IF(C129>F129,"Lt. Regelblatt 35 ist das Erfordernis einer Retention zu prüfen.","Einleitung ohne Retention möglich.") -> Einleitung ohne Retention möglich.
J132: =IF(A131="Lt. Regelblatt 35 ist das Erfordernis einer Retention zu prüfen.",1,0) -> 0
J133: =J112+J122+J132 -> 1
A134: RETENTION
A135: maximaler Drosselabfluss | C135: =IF(AND(M6="ja",J133=0),"-",IF(AND(M6="ja",J133>0),F102,IF(AND(M6="nein",J81=0),"-",F51))) -> 0.058 | D135: =IF(C135="-","Es ist keine Retention erforderlich."," ") -> 
A136: Jährlichkeit n | C136: =IF(C135="-","-",Retention!C43:D43) -> 30 | D136: Konzentrationszeit tc | F136: =IF(C135="-","-",Retention!C45) -> 60 min.
A137: Maßgebliches Regenereignis (aus ehyd-Daten) | C137: =IF(C135="-","-",Retention!D45) -> 45.7 | D137: erforderliches Retentionsvolumen VRetention | F137: =IF(C135="-","-",Retention!C44) -> 256.98816

Sheet Retention
A1: Projektbezeichnung: | C1: ='Bemessungsregendaten, kfu'!E4 -> Testprojekt
A2: Bearbeiter: | C2: ='Bemessungsregendaten, kfu'!E5 -> Max Mustermann | L2: 1
A3: Bemerkungen: | C3: ='Bemessungsregendaten, kfu'!E6 -> Testprojekt | L3: 2
A4: =Einführung!A3 -> © 2019 ÖWAV V4-8.2019 | L4: 3
A5: EINGABEN | L5: 5
A6: Einzugsflächen | L6: 10
A7: Bezeichnung Einzugsfläche | B7: Art der Entwässerungsfläche | D7: Abflussbeiwert αn | E7: An [m²] | G7: Teileinzugsflächen Ared [m²] | L7: 20
A8: Teilfläche 1 | D8: =Nachweisführung!F18 -> 0.8 | E8: =Nachweisführung!C15*10000 -> 12000 | G8: =D8*E8 -> 9600 | L8: 25
B9: GESAMTEINZUGSFLÄCHE | E9: =SUM(E8:F8) -> 12000 | G9: =SUM(G8:H8) -> 9600 | L9: 30
L10: 50
A11: =Nachweisführung!D102 -> 30 | E11: QD | F11: =IF(Nachweisführung!C135="-","-",Nachweisführung!C135*1000) -> 58 | L11: 75
A12: Zuschlagsfaktor | E12: fz | F12: 1.1 | L12: 100
A13: Abminderungsfaktor | E13: fa | F13: 0.78
A15: Berechnung Retentionsvolumen
A16: ='Bemessungsregendaten, kfu'!D18 -> 2862 | C16: Jährlichkeit
C17: 30
A18: DAUER | C18: Regenhöhe qr [l/m²] | D18: erford. Speicher-volumen Vs [m³] | M18: Drossel reduziert | O18: Abflussrate (Drossel) | P18: Zufluss | Q18: Zufluss - Abfluss
A19: 0 min | C19: 0 | D19: 0 | N19: MIN | O19: m³ | P19: m³
A20: 5 min. | C20: =HLOOKUP($C$17,'Bemessungsregendaten, kfu'!$D$20:$N$41,2,0) -> 18.1 | D20: =Q21*$F$12*$F$13 -> 139.13328 | M20: =F11*2/3 -> 38.66666667 | N20: 0 | O20: 0 | P20: 0 | Q20: 0
A21: 10 min. | C21: =HLOOKUP($C$17,'Bemessungsregendaten, kfu'!$D$20:$N$41,3,0) -> 24.1 | D21: =Q22*$F$12*$F$13 -> 178.60128 | N21: 5 | O21: =$M$20*N21*0.06 -> 11.6 | P21: =C20*$G$9/1000 -> 173.76 | Q21: =IF(P21-O21>0,P21-O21,0) -> 162.16
A22: 15 min. | C22: =HLOOKUP($C$17,'Bemessungsregendaten, kfu'!$D$20:$N$41,4,0) -> 28.2 | D22: 202.41936 | N22: 10 | O22: =$M$20*N22*0.06 -> 23.2 | P22: =C21*$G$9/1000 -> 231.36 | Q22: =IF(P22-O22>0,P22-O22,0) -> 208.16
A23: 20 min. | C23: =HLOOKUP($C$17,'Bemessungsregendaten, kfu'!$D$20:$N$41,5,0) -> 31.3 | D23: 218.00064 | N23: 15 | O23: 34.8 | P23: 270.72 | Q23: 235.92
A24: 30 min. | C24: =HLOOKUP($C$17,'Bemessungsregendaten, kfu'!$D$20:$N$41,6,0) -> 36.2 | D24: 238.45536 | N24: 20 | O24: 46.4 | P24: 300.48 | Q24: 254.08
A25: 45 min. | C25: =HLOOKUP($C$17,'Bemessungsregendaten, kfu'!$D$20:$N$41,7,0) -> 41.6 | D25: 253.07568 | N25: 30 | O25: 69.6 | P25: 347.52 | Q25: 277.92
A26: 60 min. | C26: =HLOOKUP($C$17,'Bemessungsregendaten, kfu'!$D$20:$N$41,8,0) -> 45.7 | D26: 256.98816 | N26: 45 | O26: 104.4 | P26: 399.36 | Q26: 294.96
A27: 90 min. | C27: =HLOOKUP($C$17,'Bemessungsregendaten, kfu'!$D$20:$N$41,9,0) -> 52.2 | D27: 250.81056 | N27: 60 | O27: 139.2 | P27: 438.72 | Q27: 299.52
A28: 2 h | C28: =HLOOKUP($C$17,'Bemessungsregendaten, kfu'!$D$20:$N$41,10,0) -> 57.4 | D28: 233.92512 | N28: 90 | O28: 208.8 | P28: 501.12 | Q28: 292.32
A29: 3 h | C29: =HLOOKUP($C$17,'Bemessungsregendaten, kfu'!$D$20:$N$41,11,0) -> 66.1 | D29: 186.15168 | N29: 120 | O29: 278.4 | P29: 551.04 | Q29: 272.64
A30: 4 h | C30: =HLOOKUP($C$17,'Bemessungsregendaten, kfu'!$D$20:$N$41,12,0) -> 72.7 | D30: 121.08096 | N30: 180 | O30: 417.6 | P30: 634.56 | Q30: 216.96
A31: 6 h | C31: =HLOOKUP($C$17,'Bemessungsregendaten, kfu'!$D$20:$N$41,13,0) -> 82.6 | D31: 0 | N31: 240 | O31: 556.8 | P31: 697.92 | Q31: 141.12
A32: 9 h | C32: =HLOOKUP($C$17,'Bemessungsregendaten, kfu'!$D$20:$N$41,14,0) -> 94.3 | D32: 0 | N32: 360 | O32: 835.2 | P32: 792.96 | Q32: 0
A33: 12 h | C33: =HLOOKUP($C$17,'Bemessungsregendaten, kfu'!$D$20:$N$41,15,0) -> 106.8 | D33: 0 | N33: 540 | O33: 1252.8 | P33: 905.28 | Q33: 0
A34: 18 h | C34: =HLOOKUP($C$17,'Bemessungsregendaten, kfu'!$D$20:$N$41,16,0) -> 124.7 | D34: 0 | N34: 720 | O34: 1670.4 | P34: 1025.28 | Q34: 0
A35: 1 d | C35: =HLOOKUP($C$17,'Bemessungsregendaten, kfu'!$D$20:$N$41,17,0) -> 128.5 | D35: 0 | N35: 1080 | O35: 2505.6 | P35: 1197.12 | Q35: 0
A36: 2 d | C36: =HLOOKUP($C$17,'Bemessungsregendaten, kfu'!$D$20:$N$41,18,0) -> 148.7 | D36: 0 | N36: 1440 | O36: 3340.8 | P36: 1233.6 | Q36: 0
A37: 3 d | C37: =HLOOKUP($C$17,'Bemessungsregendaten, kfu'!$D$20:$N$41,19,0) -> 160.8 | D37: 0 | N37: 2880 | O37: 6681.6 | P37: 1427.52 | Q37: 0
A38: 4 d | C38: =HLOOKUP($C$17,'Bemessungsregendaten, kfu'!$D$20:$N$41,20,0) -> 168.5 | D38: 0 | N38: 4320 | O38: 10022.4 | P38: 1543.68 | Q38: 0
A39: 5 d | C39: =HLOOKUP($C$17,'Bemessungsregendaten, kfu'!$D$20:$N$41,21,0) -> 174.4 | D39: 0 | N39: 5760 | O39: 13363.2 | P39: 1617.6 | Q39: 0
A40: 6 d | C40: =HLOOKUP($C$17,'Bemessungsregendaten, kfu'!$D$20:$N$41,22,0) -> 179.1 | D40: 0 | N40: 7200 | O40: 16704 | P40: 1674.24 | Q40: 0
N41: 8640 | O41: 20044.8 | P41: 1719.36 | Q41: 0
A42: ERGEBNIS / BERECHNUNG
A43: Gewählte Jährlichkeit | C43: =C17 -> 30 | E43: =IF(F11="-","Es ist keine Retention nach RB35 erforderlich."," ") -> 
A44: mindestens erforderliches Retentionsvolumen [m³] | C44: =IF(F11="-","-",MAX(D20:D40)) -> 256.98816
A45: Maßgebliches Regenereignis | C45: =IF(F11="-","-",IF((MAX(D20:D40)>0),(INDEX(A20:A40,MATCH(MAX(D20:D40),D20:D40,0))),"-")) -> 60 min. | D45: =IF(F11="-","-",IF((MAX(D20:D40)>0),(INDEX(C20:C40,MATCH(MAX(D20:D40),D20:D40,0))),"-")) -> 45.7

Sheet Konzentrationszeit
A1: Konzentrationszeit
H2: =Einführung!A3 -> © 2019 ÖWAV V4-8.2019
A3: nach Kreps: tc = 0,89 * EG0,4 – 0,15
A4: Einzugsgebiet: | C4: =0.89*POWER((Nachweisführung!C8/100),0.4)-0.15 -> 0.4790565993 | D4: Stunden
A5: Projektgebiet: | C5: =0.89*POWER((Nachweisführung!C15/100),0.4)-0.15 -> 0.001726872196 | D5: Stunden
A7: nach Kerby: tc = 0,7452 * L0,47 * n0,47 * J-0,235
A8: Einzugsgebiet: | C8: =0.7452*POWER(Nachweisführung!C9,0.47)*POWER(Nachweisführung!F9,0.47)*POWER(Nachweisführung!F8,-0.235) -> 0.3539907363 | D8: Stunden
A9: Projektgebiet: | C9: =0.7452*POWER(Nachweisführung!C16,0.47)*POWER(Nachweisführung!F16,0.47)*POWER(Nachweisführung!F15,-0.235) -> 0.210325819 | D9: Stunden
A11: nach Specht: tc = (1/2 bis 1/3) * L
A12: Einzugsgebiet: | C12: =Nachweisführung!C9/2 -> 0.5 | D12: Stunden | E12: bis | F12: =Nachweisführung!C9/3 -> 0.3333333333 | G12: Stunden | H12: gemittelt | I12: =(C12+F12)/2 -> 0.4166666667 | J12: Stunden
A13: Projektgebiet: | C13: =Nachweisführung!C16/2 -> 0.075 | D13: Stunden | E13: bis | F13: =Nachweisführung!C16/3 -> 0.05 | G13: Stunden | H13: gemittelt | I13: =(C13+F13)/2 -> 0.0625 | J13: Stunden
A15: nach Carter: tc = 0,09765 * L0,6 * J-0,3
A16: Einzugsgebiet: | C16: =0.09765*Nachweisführung!C9^0.6*Nachweisführung!F8^(-0.3) -> 0.2604576805 | D16: Stunden
A17: Projektgebiet: | C17: =0.09765*Nachweisführung!C16^0.6*Nachweisführung!F15^(-0.3) -> 0.1503929176 | D17: Stunden
A20: Median der Konzentrationszeiten
A21: Einzugsgebiet: | C21: =AVERAGE(C4,C8,I12,C16) -> 0.3775429207 | D21: Stunden | E21: ð | F21: =IF(C21*60<5,5,C21*60) -> 22.65257524 | G21: Minuten
A22: Projektgebiet: | C22: =AVERAGE(C5,C9,I13,C17) -> 0.1062364022 | D22: Stunden | E22: ð | F22: =IF(C22*60<5,5,C22*60) -> 6.374184132 | G22: Minuten
T27: gesuchter Wert mm
Q28: Jährlichkeit | R28: =Nachweisführung!F31 -> 30 | U28: 1 jährlich
N29: ='Bemessungsregendaten, kfu'!B20 -> MIN | O29: =R28 -> 30 | P29: 1 | Q29: Konzentrationszeit 1 | S29: =F21 -> 22.65257524 | T29: =TREND(INDIRECT("O"&(MATCH(S29,N30:N50)+29)&":O"&MATCH(S29,N30:N50)+30),INDIRECT("N"&(MATCH(S29,N30:N50)+29)&":N"&MATCH(S29,N30:N50)+30),S29) -> 32.59976187 | U29: =TREND(INDIRECT("P"&(MATCH(S29,N30:N50)+29)&":P"&MATCH(S29,N30:N50)+30),INDIRECT("N"&(MATCH(S29,N30:N50)+29)&":N"&MATCH(S29,N30:N50)+30),S29) -> 10.95093779
N30: ='Bemessungsregendaten, kfu'!B21 -> 5 | O30: =INDEX('Bemessungsregendaten, kfu'!$B$20:$N$41,MATCH(N30,'Bemessungsregendaten, kfu'!$B$20:$B$41),MATCH($R$28,'Bemessungsregendaten, kfu'!$B$20:$N$20)) -> 18.1 | P30: ='Bemessungsregendaten, kfu'!D21 -> 6.4 | Q30: Konzentrationszeit 2 | S30: =F22 -> 6.374184132 | T30: =TREND(INDIRECT("O"&(MATCH(S30,N30:N50)+29)&":O"&MATCH(S30,N30:N50)+30),INDIRECT("N"&(MATCH(S30,N30:N50)+29)&":N"&MATCH(S30,N30:N50)+30),S30) -> 19.74902096 | U30: =TREND(INDIRECT("P"&(MATCH(S30,N30:N50)+29)&":P"&MATCH(S30,N30:N50)+30),INDIRECT("N"&(MATCH(S30,N30:N50)+29)&":N"&MATCH(S30,N30:N50)+30),S30) -> 6.894706287
N31: ='Bemessungsregendaten, kfu'!B22 -> 10 | O31: =INDEX('Bemessungsregendaten, kfu'!$B$20:$N$41,MATCH(N31,'Bemessungsregendaten, kfu'!$B$20:$B$41),MATCH($R$28,'Bemessungsregendaten, kfu'!$B$20:$N$20)) -> 24.1 | P31: ='Bemessungsregendaten, kfu'!D22 -> 8.2
N32: ='Bemessungsregendaten, kfu'!B23 -> 15 | O32: =INDEX('Bemessungsregendaten, kfu'!$B$20:$N$41,MATCH(N32,'Bemessungsregendaten, kfu'!$B$20:$B$41),MATCH($R$28,'Bemessungsregendaten, kfu'!$B$20:$N$20)) -> 28.2 | P32: ='Bemessungsregendaten, kfu'!D23 -> 9.5
N33: ='Bemessungsregendaten, kfu'!B24 -> 20 | O33: =INDEX('Bemessungsregendaten, kfu'!$B$20:$N$41,MATCH(N33,'Bemessungsregendaten, kfu'!$B$20:$B$41),MATCH($R$28,'Bemessungsregendaten, kfu'!$B$20:$N$20)) -> 31.3 | P33: ='Bemessungsregendaten, kfu'!D24 -> 10.5
N34: ='Bemessungsregendaten, kfu'!B25 -> 30 | O34: =INDEX('Bemessungsregendaten, kfu'!$B$20:$N$41,MATCH(N34,'Bemessungsregendaten, kfu'!$B$20:$B$41),MATCH($R$28,'Bemessungsregendaten, kfu'!$B$20:$N$20)) -> 36.2 | P34: ='Bemessungsregendaten, kfu'!D25 -> 12.2
N35: ='Bemessungsregendaten, kfu'!B26 -> 45 | O35: =INDEX('Bemessungsregendaten, kfu'!$B$20:$N$41,MATCH(N35,'Bemessungsregendaten, kfu'!$B$20:$B$41),MATCH($R$28,'Bemessungsregendaten, kfu'!$B$20:$N$20)) -> 41.6 | P35: ='Bemessungsregendaten, kfu'!D26 -> 14.1
N36: ='Bemessungsregendaten, kfu'!B27 -> 60 | O36: =INDEX('Bemessungsregendaten, kfu'!$B$20:$N$41,MATCH(N36,'Bemessungsregendaten, kfu'!$B$20:$B$41),MATCH($R$28,'Bemessungsregendaten, kfu'!$B$20:$N$20)) -> 45.7 | P36: ='Bemessungsregendaten, kfu'!D27 -> 15.8
N37: ='Bemessungsregendaten, kfu'!B28 -> 90 | O37: =INDEX('Bemessungsregendaten, kfu'!$B$20:$N$41,MATCH(N37,'Bemessungsregendaten, kfu'!$B$20:$B$41),MATCH($R$28,'Bemessungsregendaten, kfu'!$B$20:$N$20)) -> 52.2 | P37: ='Bemessungsregendaten, kfu'!D28 -> 18.3
N38: ='Bemessungsregendaten, kfu'!B29 -> 120 | O38: =INDEX('Bemessungsregendaten, kfu'!$B$20:$N$41,MATCH(N38,'Bemessungsregendaten, kfu'!$B$20:$B$41),MATCH($R$28,'Bemessungsregendaten, kfu'!$B$20:$N$20)) -> 57.4 | P38: ='Bemessungsregendaten, kfu'!D29 -> 20.4
N39: ='Bemessungsregendaten, kfu'!B30 -> 180 | O39: =INDEX('Bemessungsregendaten, kfu'!$B$20:$N$41,MATCH(N39,'Bemessungsregendaten, kfu'!$B$20:$B$41),MATCH($R$28,'Bemessungsregendaten, kfu'!$B$20:$N$20)) -> 66.1 | P39: ='Bemessungsregendaten, kfu'!D30 -> 23.7
N40: ='Bemessungsregendaten, kfu'!B31 -> 240 | O40: =INDEX('Bemessungsregendaten, kfu'!$B$20:$N$41,MATCH(N40,'Bemessungsregendaten, kfu'!$B$20:$B$41),MATCH($R$28,'Bemessungsregendaten, kfu'!$B$20:$N$20)) -> 72.7 | P40: ='Bemessungsregendaten, kfu'!D31 -> 26.5
N41: ='Bemessungsregendaten, kfu'!B32 -> 360 | O41: =INDEX('Bemessungsregendaten, kfu'!$B$20:$N$41,MATCH(N41,'Bemessungsregendaten, kfu'!$B$20:$B$41),MATCH($R$28,'Bemessungsregendaten, kfu'!$B$20:$N$20)) -> 82.6 | P41: ='Bemessungsregendaten, kfu'!D32 -> 31.9
N42: ='Bemessungsregendaten, kfu'!B33 -> 540 | O42: =INDEX('Bemessungsregendaten, kfu'!$B$20:$N$41,MATCH(N42,'Bemessungsregendaten, kfu'!$B$20:$B$41),MATCH($R$28,'Bemessungsregendaten, kfu'!$B$20:$N$20)) -> 94.3 | P42: ='Bemessungsregendaten, kfu'!D33 -> 38.4
N43: ='Bemessungsregendaten, kfu'!B34 -> 720 | O43: =INDEX('Bemessungsregendaten, kfu'!$B$20:$N$41,MATCH(N43,'Bemessungsregendaten, kfu'!$B$20:$B$41),MATCH($R$28,'Bemessungsregendaten, kfu'!$B$20:$N$20)) -> 106.8 | P43: ='Bemessungsregendaten, kfu'!D34 -> 42.3
N44: ='Bemessungsregendaten, kfu'!B35 -> 1080 | O44: =INDEX('Bemessungsregendaten, kfu'!$B$20:$N$41,MATCH(N44,'Bemessungsregendaten, kfu'!$B$20:$B$41),MATCH($R$28,'Bemessungsregendaten, kfu'!$B$20:$N$20)) -> 124.7 | P44: ='Bemessungsregendaten, kfu'!D35 -> 48.7
N45: ='Bemessungsregendaten, kfu'!B36 -> 1440 | O45: =INDEX('Bemessungsregendaten, kfu'!$B$20:$N$41,MATCH(N45,'Bemessungsregendaten, kfu'!$B$20:$B$41),MATCH($R$28,'Bemessungsregendaten, kfu'!$B$20:$N$20)) -> 128.5 | P45: ='Bemessungsregendaten, kfu'!D36 -> 52.2
N46: ='Bemessungsregendaten, kfu'!B37 -> 2880 | O46: =INDEX('Bemessungsregendaten, kfu'!$B$20:$N$41,MATCH(N46,'Bemessungsregendaten, kfu'!$B$20:$B$41),MATCH($R$28,'Bemessungsregendaten, kfu'!$B$20:$N$20)) -> 148.7 | P46: ='Bemessungsregendaten, kfu'!D37 -> 61.4
N47: ='Bemessungsregendaten, kfu'!B38 -> 4320 | O47: =INDEX('Bemessungsregendaten, kfu'!$B$20:$N$41,MATCH(N47,'Bemessungsregendaten, kfu'!$B$20:$B$41),MATCH($R$28,'Bemessungsregendaten, kfu'!$B$20:$N$20)) -> 160.8 | P47: ='Bemessungsregendaten, kfu'!D38 -> 67.2
N48: ='Bemessungsregendaten, kfu'!B39 -> 5760 | O48: =INDEX('Bemessungsregendaten, kfu'!$B$20:$N$41,MATCH(N48,'Bemessungsregendaten, kfu'!$B$20:$B$41),MATCH($R$28,'Bemessungsregendaten, kfu'!$B$20:$N$20)) -> 168.5 | P48: ='Bemessungsregendaten, kfu'!D39 -> 71.5
N49: ='Bemessungsregendaten, kfu'!B40 -> 7200 | O49: =INDEX('Bemessungsregendaten, kfu'!$B$20:$N$41,MATCH(N49,'Bemessungsregendaten, kfu'!$B$20:$B$41),MATCH($R$28,'Bemessungsregendaten, kfu'!$B$20:$N$20)) -> 174.4 | P49: ='Bemessungsregendaten, kfu'!D40 -> 74.9
N50: ='Bemessungsregendaten, kfu'!B41 -> 8640 | O50: =INDEX('Bemessungsregendaten, kfu'!$B$20:$N$41,MATCH(N50,'Bemessungsregendaten, kfu'!$B$20:$B$41),MATCH($R$28,'Bemessungsregendaten, kfu'!$B$20:$N$20)) -> 179.1 | P50: ='Bemessungsregendaten, kfu'!D41 -> 77.8
N51: ='Bemessungsregendaten, kfu'!B20 -> MIN | O51: =R51 -> 30 | P51: 1 | Q51: Jährlichkeit | R51: =Nachweisführung!F86 -> 30 | T51: gesuchter Wert mm
N52: ='Bemessungsregendaten, kfu'!B21 -> 5 | O52: =INDEX('Bemessungsregendaten, kfu'!$B$20:$N$41,MATCH(N52,'Bemessungsregendaten, kfu'!$B$20:$B$41),MATCH($R$51,'Bemessungsregendaten, kfu'!$B$20:$N$20)) -> 18.1 | P52: ='Bemessungsregendaten, kfu'!D21 -> 6.4 | Q52: Daten vorhanden | U52: 1-jährlich
N53: ='Bemessungsregendaten, kfu'!B22 -> 10 | O53: =INDEX('Bemessungsregendaten, kfu'!$B$20:$N$41,MATCH(N53,'Bemessungsregendaten, kfu'!$B$20:$B$41),MATCH($R$51,'Bemessungsregendaten, kfu'!$B$20:$N$20)) -> 24.1 | P53: ='Bemessungsregendaten, kfu'!D22 -> 8.2 | Q53: Konzentrationszeit 3 | S53: =F22 -> 6.374184132 | T53: =TREND(INDIRECT("O"&(MATCH(S53,N52:N72)+51)&":O"&MATCH(S53,N52:N72)+52),INDIRECT("N"&(MATCH(S53,N52:N72)+51)&":N"&MATCH(S53,N52:N72)+52),S53) -> 19.74902096 | U53: =TREND(INDIRECT("P"&(MATCH(S53,N52:N72)+51)&":P"&MATCH(S53,N52:N72)+52),INDIRECT("N"&(MATCH(S53,N52:N72)+51)&":N"&MATCH(S53,N52:N72)+52),S53) -> 6.894706287
N54: ='Bemessungsregendaten, kfu'!B23 -> 15 | O54: =INDEX('Bemessungsregendaten, kfu'!$B$20:$N$41,MATCH(N54,'Bemessungsregendaten, kfu'!$B$20:$B$41),MATCH($R$51,'Bemessungsregendaten, kfu'!$B$20:$N$20)) -> 28.2 | P54: ='Bemessungsregendaten, kfu'!D23 -> 9.5
N55: ='Bemessungsregendaten, kfu'!B24 -> 20 | O55: =INDEX('Bemessungsregendaten, kfu'!$B$20:$N$41,MATCH(N55,'Bemessungsregendaten, kfu'!$B$20:$B$41),MATCH($R$51,'Bemessungsregendaten, kfu'!$B$20:$N$20)) -> 31.3 | P55: ='Bemessungsregendaten, kfu'!D24 -> 10.5
N56: ='Bemessungsregendaten, kfu'!B25 -> 30 | O56: =INDEX('Bemessungsregendaten, kfu'!$B$20:$N$41,MATCH(N56,'Bemessungsregendaten, kfu'!$B$20:$B$41),MATCH($R$51,'Bemessungsregendaten, kfu'!$B$20:$N$20)) -> 36.2 | P56: ='Bemessungsregendaten, kfu'!D25 -> 12.2
N57: ='Bemessungsregendaten, kfu'!B26 -> 45 | O57: =INDEX('Bemessungsregendaten, kfu'!$B$20:$N$41,MATCH(N57,'Bemessungsregendaten, kfu'!$B$20:$B$41),MATCH($R$51,'Bemessungsregendaten, kfu'!$B$20:$N$20)) -> 41.6 | P57: ='Bemessungsregendaten, kfu'!D26 -> 14.1
N58: ='Bemessungsregendaten, kfu'!B27 -> 60 | O58: =INDEX('Bemessungsregendaten, kfu'!$B$20:$N$41,MATCH(N58,'Bemessungsregendaten, kfu'!$B$20:$B$41),MATCH($R$51,'Bemessungsregendaten, kfu'!$B$20:$N$20)) -> 45.7 | P58: ='Bemessungsregendaten, kfu'!D27 -> 15.8
N59: ='Bemessungsregendaten, kfu'!B28 -> 90 | O59: =INDEX('Bemessungsregendaten, kfu'!$B$20:$N$41,MATCH(N59,'Bemessungsregendaten, kfu'!$B$20:$B$41),MATCH($R$51,'Bemessungsregendaten, kfu'!$B$20:$N$20)) -> 52.2 | P59: ='Bemessungsregendaten, kfu'!D28 -> 18.3
N60: ='Bemessungsregendaten, kfu'!B29 -> 120 | O60: =INDEX('Bemessungsregendaten, kfu'!$B$20:$N$41,MATCH(N60,'Bemessungsregendaten, kfu'!$B$20:$B$41),MATCH($R$51,'Bemessungsregendaten, kfu'!$B$20:$N$20)) -> 57.4 | P60: ='Bemessungsregendaten, kfu'!D29 -> 20.4
N61: ='Bemessungsregendaten, kfu'!B30 -> 180 | O61: =INDEX('Bemessungsregendaten, kfu'!$B$20:$N$41,MATCH(N61,'Bemessungsregendaten, kfu'!$B$20:$B$41),MATCH($R$51,'Bemessungsregendaten, kfu'!$B$20:$N$20)) -> 66.1 | P61: ='Bemessungsregendaten, kfu'!D30 -> 23.7
N62: ='Bemessungsregendaten, kfu'!B31 -> 240 | O62: =INDEX('Bemessungsregendaten, kfu'!$B$20:$N$41,MATCH(N62,'Bemessungsregendaten, kfu'!$B$20:$B$41),MATCH($R$51,'Bemessungsregendaten, kfu'!$B$20:$N$20)) -> 72.7 | P62: ='Bemessungsregendaten, kfu'!D31 -> 26.5
N63: ='Bemessungsregendaten, kfu'!B32 -> 360 | O63: =INDEX('Bemessungsregendaten, kfu'!$B$20:$N$41,MATCH(N63,'Bemessungsregendaten, kfu'!$B$20:$B$41),MATCH($R$51,'Bemessungsregendaten, kfu'!$B$20:$N$20)) -> 82.6 | P63: ='Bemessungsregendaten, kfu'!D32 -> 31.9
N64: ='Bemessungsregendaten, kfu'!B33 -> 540 | O64: =INDEX('Bemessungsregendaten, kfu'!$B$20:$N$41,MATCH(N64,'Bemessungsregendaten, kfu'!$B$20:$B$41),MATCH($R$51,'Bemessungsregendaten, kfu'!$B$20:$N$20)) -> 94.3 | P64: ='Bemessungsregendaten, kfu'!D33 -> 38.4
N65: ='Bemessungsregendaten, kfu'!B34 -> 720 | O65: =INDEX('Bemessungsregendaten, kfu'!$B$20:$N$41,MATCH(N65,'Bemessungsregendaten, kfu'!$B$20:$B$41),MATCH($R$51,'Bemessungsregendaten, kfu'!$B$20:$N$20)) -> 106.8 | P65: ='Bemessungsregendaten, kfu'!D34 -> 42.3
N66: ='Bemessungsregendaten, kfu'!B35 -> 1080 | O66: =INDEX('Bemessungsregendaten, kfu'!$B$20:$N$41,MATCH(N66,'Bemessungsregendaten, kfu'!$B$20:$B$41),MATCH($R$51,'Bemessungsregendaten, kfu'!$B$20:$N$20)) -> 124.7 | P66: ='Bemessungsregendaten, kfu'!D35 -> 48.7
N67: ='Bemessungsregendaten, kfu'!B36 -> 1440 | O67: =INDEX('Bemessungsregendaten, kfu'!$B$20:$N$41,MATCH(N67,'Bemessungsregendaten, kfu'!$B$20:$B$41),MATCH($R$51,'Bemessungsregendaten, kfu'!$B$20:$N$20)) -> 128.5 | P67: ='Bemessungsregendaten, kfu'!D36 -> 52.2
N68: ='Bemessungsregendaten, kfu'!B37 -> 2880 | O68: =INDEX('Bemessungsregendaten, kfu'!$B$20:$N$41,MATCH(N68,'Bemessungsregendaten, kfu'!$B$20:$B$41),MATCH($R$51,'Bemessungsregendaten, kfu'!$B$20:$N$20)) -> 148.7 | P68: ='Bemessungsregendaten, kfu'!D37 -> 61.4
N69: ='Bemessungsregendaten, kfu'!B38 -> 4320 | O69: =INDEX('Bemessungsregendaten, kfu'!$B$20:$N$41,MATCH(N69,'Bemessungsregendaten, kfu'!$B$20:$B$41),MATCH($R$51,'Bemessungsregendaten, kfu'!$B$20:$N$20)) -> 160.8 | P69: ='Bemessungsregendaten, kfu'!D38 -> 67.2
N70: ='Bemessungsregendaten, kfu'!B39 -> 5760 | O70: =INDEX('Bemessungsregendaten, kfu'!$B$20:$N$41,MATCH(N70,'Bemessungsregendaten, kfu'!$B$20:$B$41),MATCH($R$51,'Bemessungsregendaten, kfu'!$B$20:$N$20)) -> 168.5 | P70: ='Bemessungsregendaten, kfu'!D39 -> 71.5
N71: ='Bemessungsregendaten, kfu'!B40 -> 7200 | O71: =INDEX('Bemessungsregendaten, kfu'!$B$20:$N$41,MATCH(N71,'Bemessungsregendaten, kfu'!$B$20:$B$41),MATCH($R$51,'Bemessungsregendaten, kfu'!$B$20:$N$20)) -> 174.4 | P71: ='Bemessungsregendaten, kfu'!D40 -> 74.9
N72: ='Bemessungsregendaten, kfu'!B41 -> 8640 | O72: =INDEX('Bemessungsregendaten, kfu'!$B$20:$N$41,MATCH(N72,'Bemessungsregendaten, kfu'!$B$20:$B$41),MATCH($R$51,'Bemessungsregendaten, kfu'!$B$20:$N$20)) -> 179.1 | P72: ='Bemessungsregendaten, kfu'!D41 -> 77.8
